fUST/lending_fUST_20260502
["ID","MTS","AMOUNT","RATE_DAILY","PERIOD"]
[421466425,1777729838000,-562.0,9.497e-05,2]
[421466416,1777729838000,-1864.11663286,9.497e-05,2]
[421466429,1777729838000,-300.0,9.497e-05,2]
[421466427,1777729838000,-300.0,9.497e-05,2]
[421466432,1777729838000,-300.0,9.497e-05,2]
[421466423,1777729838000,-16429.49238684,9.497e-05,2]
[421466436,1777729838000,-4718.9630203,9.497e-05,2]
[421466438,1777729838000,-4718.9630203,9.497e-05,2]
[421466443,1777729838000,-4718.9630203,9.497e-05,2]
[421466445,1777729838000,-1241.95699646,9.497e-05,2]
[421466440,1777729838000,-4718.9630203,9.497e-05,2]
[421466434,1777729838000,-300.0,9.497e-05,2]
[421466504,1777729840000,-2465.30958216,9.497e-05,2]
[421466503,1777729840000,-3477.00602384,9.497e-05,2]
[421466532,1777729843000,-1118.63783476,9.497e-05,2]
[421466531,1777729843000,-1135.01560338,9.497e-05,2]
[421466533,1777729843000,-234.3539307,9.497e-05,2]
[421466538,1777729846000,-5000.0,9.402e-05,2]
[421466540,1777729846000,-500.0,9.497e-05,2]
[421466539,1777729846000,-4484.6090896,9.497e-05,2]
[421466543,1777729846000,-205.27528512,9.497e-05,2]
[421466541,1777729846000,-502.63891089,9.497e-05,2]
[421466542,1777729846000,-500.0,9.497e-05,2]
[421466544,1777729846000,-500.0,9.497e-05,2]
[421466552,1777729846000,-374.20674033,9.497e-05,2]
[421466547,1777729846000,-500.0,9.497e-05,2]
[421466550,1777729846000,-500.0,9.497e-05,2]
[421466548,1777729846000,-500.0,9.497e-05,2]
[421466549,1777729846000,-500.0,9.497e-05,2]
[421466546,1777729846000,-500.0,9.497e-05,2]
[421466551,1777729846000,-500.0,9.497e-05,2]
[421466553,1777729846000,-2523.63584575,9.497e-05,2]
[421466545,1777729846000,-4718.9630203,9.497e-05,2]
[421466554,1777730247000,3761.85030674,8.01e-05,2]
[421466555,1777730254000,5000.0,8.01e-05,2]
[421466557,1777730718000,151.0,7.791e-05,2]
[421466560,1777730771000,-300.0,8.032e-05,2]
[421466559,1777730771000,-282.63700528,8.032e-05,2]
[421466561,1777730790000,-151.0,8.675e-05,2]
[421466562,1777730790000,-542.0,8.675e-05,2]
[421466563,1777730799000,-151.5,8.846e-05,2]
[421466565,1777730838000,-300.0,9.117e-05,2]
[421466564,1777730838000,-300.0,9.116e-05,2]
[421466567,1777730838000,-300.0,9.117e-05,2]
[421466566,1777730838000,-300.0,9.117e-05,2]
[421466568,1777730838000,-1200.0,9.117e-05,2]
[421466569,1777730838000,-300.0,9.117e-05,2]
[421466570,1777730838000,-4381.20962022,9.117e-05,2]
[421466572,1777730838000,-4381.20962022,9.117e-05,2]
[421466571,1777730838000,-398.71387727,9.117e-05,2]
[421466573,1777730838000,-4381.20962022,9.117e-05,2]
[421466574,1777730838000,-4381.20962022,9.117e-05,2]
[421466576,1777730838000,-4381.20962022,9.117e-05,2]
[421466578,1777730838000,-500.0,9.118e-05,2]
[421466579,1777730838000,-500.0,9.118e-05,2]
[421466577,1777730838000,-290.78924432,9.118e-05,2]
[421466580,1777730838000,-500.0,9.118e-05,2]
[421466581,1777730838000,-500.0,9.118e-05,2]
[421466582,1777730838000,-500.0,9.118e-05,2]
[421466583,1777730838000,-500.0,9.118e-05,2]
[421466585,1777730838000,-500.0,9.118e-05,2]
[421466584,1777730838000,-500.0,9.118e-05,2]
[421466586,1777730838000,-500.0,9.118e-05,2]
[421466587,1777730838000,-23.4546145,9.118e-05,2]
[421466575,1777730838000,-4381.20962022,9.117e-05,2]
[421466588,1777730876000,-548.0,9.118e-05,2]
[421466589,1777730877000,-276.98426518,9.119e-05,2]
[421466591,1777730877000,-151.0,9.12e-05,2]
[421466590,1777730877000,-155.0,9.12e-05,2]
[421466592,1777730877000,-32363.91573482,9.124e-05,2]
[421466661,1777731032000,-921.52335485,8.929e-05,2]
[421466707,1777731040000,-666172.3817888,9.124e-05,2]
[421466705,1777731040000,-4118.337043,9.122e-05,2]
[421466701,1777731040000,-4118.337043,9.122e-05,2]
[421466699,1777731040000,-4118.337043,9.122e-05,2]
[421466703,1777731040000,-4118.337043,9.122e-05,2]
[421466706,1777731040000,-4118.337043,9.122e-05,2]
[421466698,1777731040000,-4118.337043,9.122e-05,2]
[421466702,1777731040000,-4118.337043,9.122e-05,2]
[421466700,1777731040000,-4118.337043,9.122e-05,2]
[421466695,1777731040000,-4118.337043,9.122e-05,2]
[421466693,1777731040000,-4118.337043,9.122e-05,2]
[421466696,1777731040000,-4118.337043,9.122e-05,2]
[421466697,1777731040000,-4118.337043,9.122e-05,2]
[421466704,1777731040000,-4118.337043,9.122e-05,2]
[421466692,1777731040000,-4118.337043,9.122e-05,2]
[421466690,1777731040000,-15629.89989222,9.019e-05,2]
[421466691,1777731040000,-279.09971409,9.122e-05,2]
[421466689,1777731040000,-15240.95881792,9.019e-05,2]
[421466688,1777731040000,-1200.0,9.018e-05,2]
[421466686,1777731040000,-300.0,9.018e-05,2]
[421466687,1777731040000,-300.0,9.018e-05,2]
[421466685,1777731040000,-240.0,9.018e-05,2]
[421466683,1777731040000,-1189.57474896,8.929e-05,2]
[421466684,1777731040000,-179.0,8.929e-05,2]
[421466694,1777731040000,-4118.337043,9.122e-05,2]
[421466708,1777731040000,-290.78924431,9.187e-05,2]
[421466714,1777731040000,-151.0,9.497e-05,2]
[421466718,1777731040000,-288.360296,9.497e-05,2]
[421466717,1777731040000,-151.0,9.497e-05,2]
[421466735,1777731040000,-3217.09330496,0.0001,2]
[421466734,1777731040000,-32463.10095815,0.0001,2]
[421466732,1777731040000,-600.0,9.999e-05,2]
[421466733,1777731040000,-366.7159088,0.0001,2]
[421466731,1777731040000,-500.0,9.933e-05,2]
[421466729,1777731040000,-152.1263366,9.933e-05,2]
[421466727,1777731040000,-420.0,9.92e-05,2]
[421466721,1777731040000,-502.82851629,9.604e-05,2]
[421466726,1777731040000,-500.0,9.771e-05,2]
[421466728,1777731040000,-1680.0,9.92e-05,2]
[421466725,1777731040000,-155.0,9.728e-05,2]
[421466730,1777731040000,-151.0,9.933e-05,2]
[421466724,1777731040000,-151.0,9.704e-05,2]
[421466722,1777731040000,-66784.10731125,9.704e-05,2]
[421466710,1777731040000,-290.78924431,9.325e-05,2]
[421466709,1777731040000,-290.78924431,9.256e-05,2]
[421466711,1777731040000,-290.78924431,9.394e-05,2]
[421466712,1777731040000,-155.0,9.424e-05,2]
[421466713,1777731040000,-500.0,9.497e-05,2]
[421466715,1777731040000,-151.0,9.497e-05,2]
[421466719,1777731040000,-160.33809782,9.497e-05,2]
[421466720,1777731040000,-5279.87812211,9.5e-05,2]
[421466723,1777731040000,-151.0,9.704e-05,2]
[421466716,1777731040000,-151.0,9.497e-05,2]
[421466778,1777731041000,-151.0,0.00010554,2]
[421466773,1777731041000,-160.0,0.000105,2]
[421466774,1777731041000,-500.0,0.000105,2]
[421466775,1777731041000,-745.65223616,0.00010501,2]
[421466776,1777731041000,-252.70445923,0.00010509,2]
[421466768,1777731041000,-1535.063,0.0001042,2]
[421466769,1777731041000,-648.645,0.0001042,2]
[421466780,1777731041000,-2230.315306,0.00010554,2]
[421466772,1777731041000,-151.0,0.00010468,2]
[421466770,1777731041000,-719.04747942,0.00010446,2]
[421466777,1777731041000,-461.67526834,0.00010554,2]
[421466771,1777731041000,-151.0,0.00010468,2]
[421466787,1777731041000,-345.01840208,0.00010672,2]
[421466797,1777731041000,-894.19061326,0.00010776,2]
[421466788,1777731041000,-862.28603014,0.00010721,2]
[421466782,1777731041000,-5446.28094186,0.00010592,2]
[421466781,1777731041000,-773.2413689,0.00010556,2]
[421466792,1777731041000,-325.6399711,0.00010755,2]
[421466785,1777731041000,-801.85129955,0.00010611,2]
[421466786,1777731041000,-831.51979763,0.00010666,2]
[421466789,1777731041000,-500.0,0.0001075,2]
[421466784,1777731041000,-2065.0,0.000106,2]
[421466783,1777731041000,-500.0,0.00010593,2]
[421466790,1777731041000,-324.0251867,0.00010755,2]
[421466766,1777731041000,-166.213,0.0001042,2]
[421466795,1777731041000,-242.6159777,0.00010755,2]
[421466796,1777731041000,-325.6399711,0.00010755,2]
[421466791,1777731041000,-151.0,0.00010755,2]
[421466763,1777731041000,-693.3919763,0.00010391,2]
[421466753,1777731041000,-557.5788265,0.00010061,2]
[421466762,1777731041000,-668.65185757,0.00010336,2]
[421466736,1777731041000,-318.81394652,0.0001,2]
[421466737,1777731041000,-151.0,0.0001,2]
[421466740,1777731041000,-1317.01179455,0.0001,2]
[421466738,1777731041000,-151.0,0.0001,2]
[421466739,1777731041000,-1002.44,0.0001,2]
[421466741,1777731041000,-3063.53778697,0.0001,2]
[421466742,1777731041000,-3257.66919887,0.0001,2]
[421466746,1777731041000,-202.80830008,0.00010006,2]
[421466749,1777731041000,-537.6845,0.00010006,2]
[421466745,1777731041000,-445.202766,0.00010006,2]
[421466743,1777731041000,-2748.00739309,0.0001,2]
[421466748,1777731041000,-537.6845,0.00010006,2]
[421466744,1777731041000,-3379.06818092,0.0001,2]
[421466764,1777731041000,-792.0,0.000104,2]
[421466754,1777731041000,-578.20924308,0.00010116,2]
[421466751,1777731041000,-155.0,0.00010032,2]
[421466752,1777731041000,-500.0,0.00010045,2]
[421466750,1777731041000,-2150.738,0.00010006,2]
[421466793,1777731041000,-151.0,0.00010755,2]
[421466760,1777731041000,-644.79446246,0.00010281,2]
[421466765,1777731041000,-150.324,0.0001042,2]
[421466767,1777731041000,-151.802,0.0001042,2]
[421466758,1777731041000,-621.78829552,0.00010226,2]
[421466761,1777731041000,-500.0,0.00010319,2]
[421466756,1777731041000,-183.16,0.00010197,2]
[421466755,1777731041000,-599.60298507,0.00010171,2]
[421466757,1777731041000,-500.0,0.000102,2]
[421466759,1777731041000,-184.73,0.00010241,2]
[421466747,1777731041000,-151.0,0.00010006,2]
[421466804,1777731041000,-961.58486559,0.00010886,2]
[421466779,1777731041000,-557.5788265,0.00010554,2]
[421466799,1777731041000,-927.27566595,0.00010831,2]
[421466841,1777731041000,-160.0,0.00012413,2]
[421466842,1777731041000,-246.697475,0.00012413,2]
[421466835,1777731041000,-225.92008103,0.00012177,7]
[421466836,1777731041000,-514.84070869,0.00012198,2]
[421466832,1777731041000,-864.0,0.00012099,2]
[421466838,1777731041000,-2487.15318209,0.00012198,2]
[421466833,1777731041000,-320.49,0.000121,2]
[421466840,1777731041000,-158.57,0.00012326,2]
[421466839,1777731041000,-151.0,0.00012307,2]
[421466834,1777731041000,-427.185,0.00012132,2]
[421466851,1777731041000,-533.88981491,0.00012746,2]
[421466844,1777731041000,-600.0,0.0001255,2]
[421466846,1777731041000,-8192.43229655,0.00012666,2]
[421466830,1777731041000,-823.0,0.00012003,2]
[421466849,1777731041000,-4914.83701396,0.00012716,2]
[421466854,1777731041000,-155.0,0.00012768,2]
[421466855,1777731041000,-200.0,0.0001278,2]
[421466852,1777731041000,-644.79446246,0.00012746,2]
[421466843,1777731041000,-333.394951,0.00012413,2]
[421466847,1777731041000,-5000.0,0.00012666,2]
[421466845,1777731041000,-3695.53978533,0.00012634,2]
[421466848,1777731041000,-5000.0,0.00012666,2]
[421466853,1777731041000,-2579.17784983,0.00012746,2]
[421466857,1777731041000,-200.0,0.0001278,2]
[421466858,1777731041000,-200.0,0.0001278,2]
[421466856,1777731041000,-200.0,0.0001278,2]
[421466859,1777731041000,-200.0,0.0001278,2]
[421466794,1777731041000,-325.612506,0.00010755,2]
[421466850,1777731041000,-749.41322261,0.00012722,2]
[421466831,1777731041000,-167.12318646,0.0001202,2]
[421466837,1777731041000,-621.78829552,0.00012198,2]
[421466827,1777731041000,-181.30666897,0.00011969,7]
[421466805,1777731041000,-284120.23346762,0.00010909,2]
[421466800,1777731041000,-151.0,0.00010843,2]
[421466801,1777731041000,-151.0,0.00010843,2]
[421466802,1777731041000,-151.0,0.00010843,2]
[421466803,1777731041000,-500.0,0.00010867,2]
[421466798,1777731041000,-398.8865848,0.000108,2]
[421466813,1777731041000,-478.75725327,0.00011102,2]
[421466828,1777731041000,-181.30666894,0.00011974,7]
[421466808,1777731041000,-997.16350561,0.00010941,2]
[421466807,1777731041000,-1680.0,0.00010912,2]
[421466816,1777731041000,-2312.83697232,0.00011102,2]
[421466811,1777731041000,-319.0,0.00011,2]
[421466810,1777731041000,-720.0,0.00010999,2]
[421466806,1777731041000,-587.0,0.00010912,2]
[421466812,1777731041000,-658.6,0.00011,2]
[421466817,1777731041000,-326.84143291,0.00011119,2]
[421466825,1777731041000,-157.01,0.0001192,2]
[421466814,1777731041000,-174.73012077,0.00011102,2]
[421466826,1777731041000,-177419.173059,0.00011921,2]
[421466821,1777731041000,-496.47127164,0.0001165,2]
[421466829,1777731041000,-300.0,0.00012,2]
[421466818,1777731041000,-328.65416888,0.00011141,2]
[421466822,1777731041000,-599.60298507,0.0001165,2]
[421466824,1777731041000,-151.5,0.00011746,2]
[421466820,1777731041000,-500.0,0.00011206,2]
[421466819,1777731041000,-677.76024309,0.00011153,2]
[421466809,1777731041000,-155.0,0.00010944,2]
[421466815,1777731041000,-578.20924308,0.00011102,2]
[421466823,1777731041000,-2398.4119403,0.0001165,2]
[421466870,1777731042000,-822.0,0.00012893,2]
[421466868,1777731042000,-822.0,0.00012893,2]
[421466874,1777731042000,-822.0,0.00012893,2]
[421466878,1777731042000,-8929.08778767,0.000129,2]
[421466871,1777731042000,-822.0,0.00012893,2]
[421466865,1777731042000,-160.0,0.000128,2]
[421466866,1777731042000,-160.0,0.00012878,3]
[421466861,1777731042000,-200.0,0.0001278,2]
[421466862,1777731042000,-200.0,0.0001278,2]
[421466860,1777731042000,-200.0,0.0001278,2]
[421466867,1777731042000,-822.0,0.00012893,2]
[421466864,1777731042000,-200.0,0.0001278,2]
[421466876,1777731042000,-8929.08778768,0.000129,2]
[421466863,1777731042000,-200.0,0.0001278,2]
[421466872,1777731042000,-822.0,0.00012893,2]
[421466877,1777731042000,-8929.08778767,0.000129,2]
[421466869,1777731042000,-822.0,0.00012893,2]
[421466880,1777731042000,-500.0,0.00012999,2]
[421466891,1777731042000,-401.34441102,0.00013132,2]
[421466887,1777731042000,-138613.54873364,0.00013132,2]
[421466889,1777731042000,-5142.75770885,0.00013132,2]
[421466884,1777731042000,-500.45,0.000131,2]
[421466890,1777731042000,-1549.6017491,0.00013132,2]
[421466882,1777731042000,-336.405648,0.00013034,2]
[421466881,1777731042000,-1445.83714603,0.00013006,2]
[421466886,1777731042000,-548697.79866187,0.00013132,2]
[421466888,1777731042000,-72686.08070674,0.00013132,2]
[421466885,1777731042000,-376.69860064,0.00013119,2]
[421466875,1777731042000,-821.0,0.00012893,2]
[421466873,1777731042000,-822.0,0.00012893,2]
[421466879,1777731042000,-813.0,0.0001297,2]
[421466883,1777731042000,-821.0,0.0001304,2]
[421466909,1777731043000,-505.9535,0.00013132,2]
[421466908,1777731043000,-5723.11357715,0.00013132,2]
[421466906,1777731043000,-740.0,0.00010221,2]
[421466907,1777731043000,-8096.23,0.00012777,2]
[421466953,1777731047000,-1777.62936421,0.00012869,2]
[421466959,1777731047000,-481.85288708,0.00013132,2]
[421466951,1777731047000,-1853.22459703,0.00012869,2]
[421466961,1777731047000,-7771.2178703,0.00013132,2]
[421466955,1777731047000,-22052.50144398,0.00013132,2]
[421466965,1777731047000,-2150.00499999,0.00013132,2]
[421466957,1777731047000,-14838.82548528,0.00013132,2]
[421467088,1777732232000,-500.0,8.921e-05,2]
[421467086,1777732232000,-500.0,8.921e-05,2]
[421467084,1777732232000,-500.0,8.921e-05,2]
[421467069,1777732232000,-500.0,8.921e-05,2]
[421467071,1777732232000,-500.0,8.921e-05,2]
[421467073,1777732232000,-500.0,8.921e-05,2]
[421467067,1777732232000,-285.13,8.77e-05,7]
[421467065,1777732232000,-200.0,8.77e-05,2]
[421467049,1777732232000,-1200.0,8.577e-05,2]
[421467090,1777732232000,-500.0,8.921e-05,2]
[421467053,1777732232000,-300.0,8.577e-05,2]
[421467051,1777732232000,-536.0,8.577e-05,2]
[421467047,1777732232000,-1200.0,8.576e-05,2]
[421467061,1777732232000,-5000.0,8.578e-05,2]
[421467059,1777732232000,-300.0,8.577e-05,2]
[421467057,1777732232000,-300.0,8.577e-05,2]
[421467054,1777732232000,-300.0,8.577e-05,2]
[421467063,1777732232000,-269.30968195,8.621e-05,2]
[421467092,1777732232000,-500.0,8.921e-05,2]
[421467124,1777732232000,-500.0,8.921e-05,2]
[421467101,1777732232000,-500.0,8.921e-05,2]
[421467132,1777732232000,-500.0,8.921e-05,2]
[421467130,1777732232000,-500.0,8.921e-05,2]
[421467128,1777732232000,-500.0,8.921e-05,2]
[421467126,1777732232000,-500.0,8.921e-05,2]
[421467116,1777732232000,-500.0,8.921e-05,2]
[421467111,1777732232000,-500.0,8.921e-05,2]
[421467113,1777732232000,-500.0,8.921e-05,2]
[421467122,1777732232000,-500.0,8.921e-05,2]
[421467107,1777732232000,-500.0,8.921e-05,2]
[421467109,1777732232000,-500.0,8.921e-05,2]
[421467118,1777732232000,-565.55339167,8.921e-05,2]
[421467120,1777732232000,-500.0,8.921e-05,2]
[421467105,1777732232000,-500.0,8.921e-05,2]
[421467100,1777732232000,-500.0,8.921e-05,2]
[421467098,1777732232000,-500.0,8.921e-05,2]
[421467103,1777732232000,-500.0,8.921e-05,2]
[421467096,1777732232000,-500.0,8.921e-05,2]
[421467094,1777732232000,-500.0,8.921e-05,2]
[421467134,1777732233000,-355.11011179,8.921e-05,2]
[421467138,1777732233000,-53865.54917503,8.922e-05,2]
[421467136,1777732233000,-195.36979986,8.921e-05,2]
[421467401,1777732255000,-2690.00871136,8.922e-05,2]
[421467403,1777732255000,-455.0,8.922e-05,2]
[421467402,1777732255000,-1990.70963771,8.922e-05,2]
[421467409,1777732901000,202.64543136,8.01e-05,2]
[421467410,1777732910000,5000.0,8.01e-05,2]
[421467414,1777732932000,5000.0,8.01e-05,2]
[421467456,1777733431000,-535.0,8.162e-05,2]
[421467464,1777733431000,-300.0,8.72e-05,2]
[421467460,1777733431000,-210.04207293,8.477e-05,2]
[421467458,1777733431000,-263.92348831,8.319e-05,2]
[421467466,1777733431000,-463.0,8.72e-05,2]
[421467468,1777733431000,-10228.03443876,8.721e-05,2]
[421467462,1777733431000,-300.0,8.72e-05,2]
[421467514,1777733438000,-702.64543136,8.72e-05,2]
[421467546,1777733443000,-2831.09987232,8.72e-05,2]
[421467548,1777733443000,-3497.64212001,8.72e-05,2]
[421467547,1777733443000,-327.83119295,8.72e-05,2]
[421467589,1777733446000,-3533.74530368,8.72e-05,2]
[421467595,1777733446000,-3533.74530368,8.72e-05,2]
[421467587,1777733446000,-36.10318367,8.72e-05,2]
[421467593,1777733446000,-3533.74530368,8.72e-05,2]
[421467591,1777733446000,-3533.74530368,8.72e-05,2]
[421467597,1777733446000,-3533.74530368,8.72e-05,2]
[421467616,1777733447000,-806.96322437,8.72e-05,2]
[421467601,1777733447000,-3533.74530368,8.72e-05,2]
[421467605,1777733447000,-3533.74530368,8.72e-05,2]
[421467603,1777733447000,-3533.74530368,8.72e-05,2]
[421467609,1777733447000,-3533.74530368,8.72e-05,2]
[421467613,1777733447000,-2726.78207931,8.72e-05,2]
[421467611,1777733447000,-3533.74530368,8.72e-05,2]
[421467618,1777733447000,-270.37154268,8.72e-05,2]
[421467599,1777733447000,-3533.74530368,8.72e-05,2]
[421467607,1777733447000,-3533.74530368,8.72e-05,2]
[421467660,1777734056000,-500.0,8.617e-05,2]
[421467661,1777734074000,-500.0,8.617e-05,2]
[421467662,1777734096000,-300.0,8.616e-05,2]
[421467663,1777734114000,-541.0,8.616e-05,2]
[421467664,1777734132000,-500.0,8.617e-05,2]
[421467665,1777734150000,-500.0,8.617e-05,2]
[421467666,1777734168000,-500.0,8.617e-05,2]
[421467670,1777734463000,256061.33676464,0.00021,120]
[421467672,1777734562000,2125.57,0.0002191,120]
[421467705,1777734632000,-223794.59,8.516e-05,2]
[421467902,1777734638000,-500.0,8.515e-05,2]
[421467874,1777734638000,-500.0,8.515e-05,2]
[421467876,1777734638000,-382.36718564,8.515e-05,2]
[421467886,1777734638000,-500.0,8.515e-05,2]
[421467888,1777734638000,-500.0,8.515e-05,2]
[421467893,1777734638000,-3276.13749382,8.515e-05,2]
[421467890,1777734638000,-500.0,8.515e-05,2]
[421467896,1777734638000,-500.0,8.515e-05,2]
[421467906,1777734638000,-500.0,8.515e-05,2]
[421467910,1777734638000,-213.17391264,8.515e-05,2]
[421467908,1777734638000,-3276.13749382,8.515e-05,2]
[421467899,1777734638000,-500.0,8.515e-05,2]
[421467912,1777734638000,-500.0,8.515e-05,2]
[421467914,1777734638000,-3276.13749382,8.515e-05,2]
[421467872,1777734638000,-500.0,8.515e-05,2]
[421467904,1777734638000,-500.0,8.515e-05,2]
[421467884,1777734638000,-500.0,8.515e-05,2]
[421467882,1777734638000,-500.0,8.515e-05,2]
[421467916,1777734638000,-450.2302347,8.515e-05,2]
[421467846,1777734638000,-417.41342806,8.515e-05,2]
[421467844,1777734638000,-3276.13749382,8.515e-05,2]
[421467848,1777734638000,-3276.13749382,8.515e-05,2]
[421467856,1777734638000,-3276.13749382,8.515e-05,2]
[421467854,1777734638000,-3276.13749382,8.515e-05,2]
[421467850,1777734638000,-3276.13749382,8.515e-05,2]
[421467861,1777734638000,-3276.13749382,8.515e-05,2]
[421467859,1777734638000,-3276.13749382,8.515e-05,2]
[421467852,1777734638000,-3276.13749382,8.515e-05,2]
[421467865,1777734638000,-3276.13749382,8.515e-05,2]
[421467863,1777734638000,-3276.13749382,8.515e-05,2]
[421467867,1777734638000,-3276.13749382,8.515e-05,2]
[421467878,1777734638000,-500.0,8.515e-05,2]
[421467880,1777734638000,-500.0,8.515e-05,2]
[421467869,1777734638000,-3276.13749382,8.515e-05,2]
[421467919,1777734638000,-500.0,8.515e-05,2]
[421467938,1777734638000,-3276.13749382,8.515e-05,2]
[421467924,1777734638000,-500.0,8.515e-05,2]
[421467947,1777734638000,-3276.13749382,8.515e-05,2]
[421467948,1777734638000,-500.0,8.515e-05,2]
[421467949,1777734638000,-500.0,8.515e-05,2]
[421467950,1777734638000,-500.0,8.515e-05,2]
[421467952,1777734638000,-500.0,8.515e-05,2]
[421467955,1777734638000,-500.0,8.515e-05,2]
[421467954,1777734638000,-500.0,8.515e-05,2]
[421467956,1777734638000,-500.0,8.515e-05,2]
[421467959,1777734638000,-500.0,8.515e-05,2]
[421467958,1777734638000,-500.0,8.515e-05,2]
[421467957,1777734638000,-500.0,8.515e-05,2]
[421467922,1777734638000,-500.0,8.515e-05,2]
[421467963,1777734638000,-500.0,8.515e-05,2]
[421467962,1777734638000,-500.0,8.515e-05,2]
[421467961,1777734638000,-500.0,8.515e-05,2]
[421467951,1777734638000,-558.2366632,8.515e-05,2]
[421467946,1777734638000,-500.0,8.515e-05,2]
[421467960,1777734638000,-500.0,8.515e-05,2]
[421467944,1777734638000,-500.0,8.515e-05,2]
[421467945,1777734638000,-500.0,8.515e-05,2]
[421467926,1777734638000,-500.0,8.515e-05,2]
[421467939,1777734638000,-500.0,8.515e-05,2]
[421467930,1777734638000,-500.0,8.515e-05,2]
[421467936,1777734638000,-500.0,8.515e-05,2]
[421467934,1777734638000,-500.0,8.515e-05,2]
[421467932,1777734638000,-500.0,8.515e-05,2]
[421467928,1777734638000,-3276.13749382,8.515e-05,2]
[421467937,1777734638000,-500.0,8.515e-05,2]
[421467941,1777734638000,-500.0,8.515e-05,2]
[421467940,1777734638000,-500.0,8.515e-05,2]
[421467953,1777734638000,-500.0,8.515e-05,2]
[421467943,1777734638000,-500.0,8.515e-05,2]
[421467935,1777734638000,-3276.13749382,8.515e-05,2]
[421467942,1777734638000,-500.0,8.515e-05,2]
[421467980,1777734639000,-218.5,8.8e-05,2]
[421467978,1777734639000,-159.97409204,8.617e-05,2]
[421467990,1777734639000,-4385.68200038,0.0001,2]
[421467981,1777734639000,-228.33,8.9e-05,2]
[421467982,1777734639000,-420.0,9.367e-05,2]
[421467985,1777734639000,-456.1217259,9.921e-05,2]
[421467988,1777734639000,-4843.00301388,0.0001,2]
[421467983,1777734639000,-155.0,9.588e-05,2]
[421467984,1777734639000,-151.0,9.753e-05,2]
[421467979,1777734639000,-155.0,8.716e-05,2]
[421467987,1777734639000,-1994.70269307,0.0001,2]
[421467986,1777734639000,-5548.43089988,0.0001,2]
[421467989,1777734639000,-3928.36098698,0.0001,2]
[421467969,1777734639000,-300.0,8.516e-05,2]
[421467972,1777734639000,-300.0,8.516e-05,2]
[421467975,1777734639000,-32328.14360773,8.517e-05,2]
[421467976,1777734639000,-50000.0,8.615e-05,2]
[421467974,1777734639000,-316708.14225557,8.517e-05,2]
[421467971,1777734639000,-300.0,8.516e-05,2]
[421467970,1777734639000,-300.0,8.516e-05,2]
[421467967,1777734639000,-713336.84227067,8.516e-05,2]
[421467977,1777734639000,-262.58730368,8.615e-05,2]
[421467968,1777734639000,-210.0,8.516e-05,2]
[421467964,1777734639000,-500.0,8.515e-05,2]
[421467966,1777734639000,-183836.71762074,8.516e-05,2]
[421467965,1777734639000,-500.0,8.515e-05,2]
[421467991,1777734639000,-4797.37962194,0.0001,2]
[421467973,1777734639000,-1200.0,8.516e-05,2]
[421467997,1777734639000,-500.0,0.00010138,2]
[421468021,1777734639000,-195.0,0.00011,2]
[421468000,1777734639000,-587.0,0.00010304,2]
[421468023,1777734639000,-6291.56795757,0.00011051,2]
[421468022,1777734639000,-398.0,0.00011,2]
[421468020,1777734639000,-246.40350171,0.0001099,2]
[421468019,1777734639000,-347.74248831,0.00010959,2]
[421468017,1777734639000,-324.3657071,0.00010751,2]
[421468018,1777734639000,-324.8741696,0.00010751,2]
[421468016,1777734639000,-325.612506,0.00010751,2]
[421468015,1777734639000,-325.612506,0.00010751,2]
[421468012,1777734639000,-259.6310944,0.00010751,2]
[421467999,1777734639000,-486.092,0.00010295,2]
[421468011,1777734639000,-325.612506,0.0001075,2]
[421468010,1777734639000,-151.0,0.0001075,2]
[421468009,1777734639000,-500.0,0.00010672,2]
[421468008,1777734639000,-309.85301835,0.00010615,2]
[421468013,1777734639000,-325.612506,0.00010751,2]
[421468005,1777734639000,-646.0,0.00010433,2]
[421467993,1777734639000,-7340.95092636,0.0001,2]
[421468007,1777734639000,-155.0,0.00010459,2]
[421467992,1777734639000,-3026.38037054,0.0001,2]
[421468002,1777734639000,-150.494,0.00010433,2]
[421467994,1777734639000,-6497.71609163,0.0001,2]
[421467996,1777734639000,-7203.01787959,0.0001,2]